fUSD/lending_fUSD_20251120
["ID","MTS","AMOUNT","RATE_DAILY","PERIOD"]
[394527511,1763668011046,1116.22,9.673e-05,2]
[394527512,1763668011287,1116.22,0.00010113,2]
[394527513,1763668011496,1116.22,0.00010552,2]
[394527514,1763668011708,1116.22,0.00010992,2]
[394527515,1763668011937,1116.22,0.00011432,2]
[394527516,1763668012148,894.99,0.00011871,2]
[394527517,1763668012170,221.23,0.00011871,2]
[394527518,1763668012370,1116.22,0.00012311,2]
[394527519,1763668012579,1116.22,0.00012751,2]
[394527520,1763668012781,1116.22,0.0001319,2]
[394527521,1763668013024,1116.22,0.0001363,2]
[394527522,1763668013216,1116.22,0.0001407,2]
[394527523,1763668013630,1116.22,0.00014509,2]
[394527525,1763668013871,1116.22,0.00014949,2]
[394527526,1763668014097,1116.22,0.00015389,2]
[394527527,1763668014299,849.02,0.00015828,2]
[394527528,1763668014324,267.2,0.00015828,2]
[394527609,1763668184820,720.0,0.00035616,120]
[394527619,1763668232020,-1116.22,0.00016268,2]
[394527620,1763668232029,-287.88088425,0.000164,2]
[394527621,1763668232040,-1000.0,0.00016401,2]
[394527622,1763668232049,-300.0,0.00016499,2]
[394527623,1763668232059,-1200.0,0.00016499,2]
[394527624,1763668232069,-500.0,0.000165,2]
[394527625,1763668232080,-202.765094,0.000165,2]
[394527626,1763668232090,-500.0,0.000165,2]
[394527627,1763668232099,-500.0,0.000165,2]
[394527628,1763668232109,-500.0,0.000165,2]
[394527629,1763668232118,-241.52,0.00016606,2]
[394527630,1763668232127,-1116.22,0.00016708,2]
[394527631,1763668232137,-1500.0,0.00016708,2]
[394527632,1763668232150,-175.26,0.00016803,2]
[394527633,1763668232159,-2751.0,0.00016894,2]
[394527634,1763668232169,-150.0,0.00016966,2]
[394527635,1763668232179,-250.0,0.00017,2]
[394527636,1763668232188,-607.18,0.00017116,2]
[394527637,1763668232197,-200.0,0.00017137,2]
[394527638,1763668232207,-504.07,0.00017137,2]
[394527639,1763668232216,-311.33687836,0.00017137,3]
[394527640,1763668232228,-614.50389,0.00017137,3]
[394527641,1763668232243,-73.15923164,0.00017137,3]
[394527642,1763668232253,-166.67,0.00017434,2]
[394527643,1763668232262,-241.52,0.00017529,2]
[394527644,1763668232273,-168.23,0.00017551,2]
[394527645,1763668232285,-1319.0,0.00017551,2]
[394527646,1763668232295,-3434.0,0.00017551,2]
[394527648,1763668232305,-609.0,0.00017551,2]
[394527650,1763668232316,-575.0,0.00017551,2]
[394527652,1763668232326,-1598.0,0.00017551,2]
[394527653,1763668232335,-820.0,0.00017551,2]
[394527654,1763668232348,-1191.0,0.00017551,2]
[394527655,1763668232359,-907.0,0.00017551,2]
[394527657,1763668232370,-344.747,0.00017551,2]
[394527658,1763668232380,-6494.0,0.00017551,2]
[394527659,1763668232390,-1605.0,0.00017551,2]
[394527660,1763668232401,-705.0,0.00017551,2]
[394527661,1763668232411,-168.23,0.00017825,2]
[394527662,1763668232422,-311.12056146,0.000179,2]
[394527663,1763668232432,-15595.9060029,0.000179,2]
[394527664,1763668232442,-4601.72308612,0.00017944,2]
[394527665,1763668232455,-1254.41808677,0.00017944,2]
[394527666,1763668232468,-405.14652792,0.00017944,2]
[394527667,1763668232479,-370.0,0.00017944,2]
[394527669,1763668238046,-6945.21982438,0.00017944,2]
[394527670,1763668238056,-169.51179559,0.0001795,2]
[394527675,1763668240038,-561.0,0.00017551,2]
[394527676,1763668240051,-432.09510735,0.0001795,2]
[394527677,1763668240190,-114.95886688,0.0001795,2]
[394527678,1763668240201,-52970.30167728,0.0001795,2]
[394527679,1763668240214,-363.85571956,0.00017973,2]
[394527680,1763668240224,-500.0,0.00017973,2]
[394527681,1763668240234,-500.0,0.00017973,2]
[394527682,1763668240244,-248.80901275,0.00017999,2]
[394527683,1763668240253,-4611.0,0.00018,2]
[394527684,1763668240263,-53278.87418226,0.00018,2]
[394527685,1763668240353,-1729.9999,0.00018,2]
[394527810,1763668244599,-6488.0,0.00018,2]
[394527817,1763668246188,-3430.90196045,0.00018,2]
[394527861,1763668293546,3649.711,0.00016073,2]
[394527884,1763668333227,-363.55,0.00024658,30]
[394527885,1763668333287,-363.55,0.00029704,30]
[394527886,1763668333336,-363.55,0.00034751,30]
[394527887,1763668333384,-164.0,0.00036,30]
[394527888,1763668333434,-408.5,0.00037,120]
[394527889,1763668333481,-484.45,0.000378,30]
[394527890,1763668333524,-164.0,0.00038,30]
[394527891,1763668333566,-1000.0,0.00038,120]
[394527892,1763668333609,-3305.0,0.00038356,30]
[394527893,1763668333655,-1000.0,0.00039,120]
[394527894,1763668333696,-3649.712,0.00039555,55]
[394527895,1763668333738,-363.55,0.00039798,30]
[394527896,1763668333782,-166.0,0.0004,30]
[394527897,1763668333827,-1000.0,0.0004,120]
[394527898,1763668333865,-7499.99,0.0004,120]
[394527899,1763668333905,-12507.13,0.0004,120]
[394527900,1763668333942,-6099.24,0.0004,120]
[394527901,1763668333981,-349.59,0.000403,30]
[394527902,1763668334024,-706.89,0.00040766,30]
[394527903,1763668334062,-460.0,0.00040896,30]
[394527904,1763668334103,-698.26,0.00041,30]
[394527905,1763668334143,-708.66,0.00041,30]
[394527906,1763668334183,-693.88,0.00041,30]
[394527907,1763668334223,-709.66,0.00041,30]
[394527908,1763668334264,-47695.0,0.00041,30]
[394527909,1763668334306,-166.0,0.00041,30]
[394527910,1763668334346,-3373.23010483,0.00041,30]
[394527911,1763668334390,-1000.0,0.00041,120]
[394527912,1763668334433,-500.0,0.00041096,30]
[394527913,1763668334478,-460.0,0.00041318,30]
[394527915,1763668334523,-500.01,0.0004137,30]
[394527916,1763668334568,-460.0,0.0004174,30]
[394527917,1763668334609,-3373.23010483,0.00041982,30]
[394527918,1763668334652,-50000.0,0.00041991,35]
[394527919,1763668334693,-50000.0,0.00041991,36]
[394527920,1763668334742,-50000.0,0.00041991,37]
[394527921,1763668334811,-50000.0,0.00041991,38]
[394527922,1763668334866,-50000.0,0.00041991,39]
[394527923,1763668334937,-200.24,0.00042,30]
[394527924,1763668334987,-1000.0,0.00042,120]
[394527925,1763668335034,-349.59,0.000421,30]
[394527926,1763668335084,-460.0,0.00042161,30]
[394527927,1763668335130,-460.0,0.00042583,30]
[394527928,1763668335174,-695.22,0.00042996,30]
[394527929,1763668335218,-1000.0,0.00043,120]
[394527930,1763668335260,-460.0,0.00043004,30]
[394527931,1763668335301,-460.0,0.00043426,30]
[394527932,1763668335343,-519.88103133,0.00043562,120]
[394527933,1763668335386,-500.0,0.00043836,31]
[394527934,1763668335431,-1000.0,0.00044,120]
[394527935,1763668335481,-349.59,0.000447,30]
[394527936,1763668335524,-363.55,0.00044845,120]
[394527937,1763668335567,-21074.59,0.000449,120]
[394527938,1763668335609,-50000.0,0.000449,120]
[394527939,1763668335654,-50000.0,0.00045,45]
[394527940,1763668335696,-1000.0,0.00045,120]
[394527941,1763668335737,-4934.0,0.00045,120]
[394527942,1763668335777,-2467.0,0.00045,120]
[394527943,1763668335820,-2467.0,0.00045,120]
[394527944,1763668335861,-1000.0,0.00046,120]
[394527945,1763668335900,-200.24,0.00046,30]
[394527946,1763668335938,-349.59,0.00047,30]
[394527947,1763668335974,-1000.0,0.00047,120]
[394527948,1763668336010,-4934.0,0.00047,120]
[394527949,1763668336046,-2467.0,0.00047,120]
[394527950,1763668336083,-2467.0,0.00047,120]
[394527951,1763668336118,-1560.0,0.00047,120]
[394527953,1763668336153,-5150.0,0.00047,120]
[394527954,1763668336192,-1000.0,0.00048,120]
[394527955,1763668336231,-1655.0,0.00048,120]
[394527956,1763668336269,-1656.0,0.00048,120]
[394527957,1763668336310,-562.68526215,0.00049,30]
[394527958,1763668336348,-1000.0,0.00049,120]
[394527959,1763668336390,-4934.0,0.00049,120]
[394527960,1763668336433,-2467.0,0.00049,120]
[394527961,1763668336473,-2467.0,0.00049,120]
[394527962,1763668336514,-500.0,0.00049315,33]
[394527963,1763668336556,-363.55,0.00049892,120]
[394527964,1763668336595,-1000.0,0.0005,120]
[394527965,1763668336634,-1000.0,0.0005,120]
[394527966,1763668336673,-200.24,0.0005,120]
[394527967,1763668336713,-1000.0,0.0005,120]
[394527968,1763668336751,-1000.0,0.00051,120]
[394527969,1763668336790,-4934.0,0.00051,120]
[394527970,1763668336832,-2467.0,0.00051,120]
[394527971,1763668337029,-2467.0,0.00051,120]
[394527972,1763668337072,-1560.0,0.00051,120]
[394527973,1763668337112,-1000.0,0.00052,120]
[394527974,1763668337151,-150.0,0.00052,30]
[394527975,1763668337190,-153.0,0.00052055,120]
[394527976,1763668337229,-153.0,0.00052055,120]
[394527977,1763668337269,-153.0,0.00052055,120]
[394527978,1763668337310,-153.0,0.00052055,120]
[394527979,1763668337351,-153.0,0.00052055,120]
[394527980,1763668337393,-497713.04364855,0.00052913,120]
[394527981,1763668337435,-1000.0,0.00053,120]
[394527982,1763668337476,-4934.0,0.00053,120]
[394527983,1763668337515,-2467.0,0.00053,120]
[394527984,1763668337554,-2467.0,0.00053,120]
[394527985,1763668337593,-1655.0,0.00053,120]
[394527986,1763668337632,-1656.0,0.00053,120]
[394527987,1763668337669,-1111.378059,0.000532,120]
[394527989,1763668337707,-500.0,0.00053795,120]
[394527990,1763668337744,-511.47,0.00053795,120]
[394527991,1763668337779,-528.12,0.00053795,120]
[394527992,1763668337817,-1000.0,0.00054,120]
[394527993,1763668337854,-3940663.38978931,0.0005418,120]
[394528001,1763668355691,-41530.97968409,0.00041992,30]
[394528002,1763668355734,-92148.30340566,0.00041992,120]
[394528003,1763668355771,-70420.65539111,0.00041992,120]
[394528004,1763668355809,-13860.42328425,0.00041992,120]
[394528005,1763668355848,-6964.08692883,0.00041992,120]
[394528006,1763668355888,-10858.09015766,0.00041992,120]
[394528007,1763668355927,-9793.29621208,0.00041992,120]
[394528008,1763668355968,-192.94997606,0.00041992,30]
[394528022,1763668381057,-583.7357377,0.000419,120]
[394528023,1763668381099,-691.08,0.00041933,30]
[394528024,1763668381142,-7368.96646845,0.00041933,30]
[394528025,1763668381185,-47074.65037882,0.00041933,30]
[394528027,1763668381245,-150.0,0.00041992,30]
[394528028,1763668381286,-150.0,0.00041992,30]
[394528029,1763668381332,-691.22,0.00041996,30]
[394528031,1763668381377,-300.0,0.00042,30]
[394528032,1763668381420,-2182.97,0.00042,30]
[394528033,1763668381603,-301.2,0.00042,30]
[394528035,1763668381652,-550.68,0.00042,30]
[394528036,1763668381692,-550.68,0.00042,30]
[394528037,1763668381729,-550.68,0.00042,30]
[394528038,1763668381766,-338.98,0.00042,30]
[394528039,1763668381806,-478.75,0.00042,30]
[394528040,1763668381845,-479.16,0.00042,30]
[394528041,1763668381883,-701.05,0.00042,30]
[394528042,1763668381920,-478.75,0.00042,30]
[394528044,1763668381957,-701.05,0.00042,30]
[394528045,1763668381998,-478.75,0.00042,30]
[394528046,1763668382038,-701.05,0.00042,30]
[394528047,1763668382076,-478.75,0.00042,30]
[394528048,1763668382113,-478.75,0.00042,30]
[394528049,1763668382149,-478.75,0.00042,30]
[394528050,1763668382188,-478.75,0.00042,30]
[394528052,1763668382227,-478.75,0.00042,30]
[394528053,1763668382267,-478.75,0.00042,30]
[394528054,1763668382313,-583.7357377,0.000431,120]
[394528055,1763668382364,-153.0,0.00052055,120]
[394528056,1763668382403,-153.0,0.00052055,120]
[394528057,1763668382442,-153.0,0.00052055,120]
[394528058,1763668382481,-153.0,0.00052055,120]
[394528060,1763668382517,-153.0,0.00052055,120]
[394528061,1763668382553,-153.0,0.00052055,120]
[394528062,1763668382589,-153.0,0.00052055,120]
[394528063,1763668382625,-153.0,0.00052055,120]
[394528064,1763668382661,-153.0,0.00052055,120]
[394528065,1763668382695,-153.0,0.00052055,120]
[394528066,1763668382729,-153.0,0.00052055,120]
[394528067,1763668382764,-153.0,0.00052055,120]
[394528068,1763668382800,-153.0,0.00052055,120]
[394528069,1763668382841,-153.0,0.00052055,120]
[394528070,1763668382879,-153.0,0.00052055,120]
[394528071,1763668382914,-153.0,0.00052055,120]
[394528072,1763668382950,-153.0,0.00052055,120]
[394528073,1763668382985,-153.0,0.00052055,120]
[394528074,1763668383025,-153.0,0.00052055,120]
[394528075,1763668383066,-153.0,0.00052055,120]
[394528076,1763668383107,-153.0,0.00052055,120]
[394528077,1763668383149,-153.0,0.00052055,120]
[394528078,1763668383193,-153.0,0.00052055,120]
[394528079,1763668383237,-153.0,0.00052055,120]
[394528080,1763668383280,-153.0,0.00052055,120]
[394528081,1763668383323,-153.0,0.00052055,120]
[394528082,1763668383369,-153.0,0.00052055,120]
[394528083,1763668383420,-153.0,0.00052055,120]
[394528085,1763668383475,-153.0,0.00052055,120]
[394528086,1763668383524,-153.0,0.00052055,120]
[394528087,1763668383573,-153.0,0.00052055,120]
[394528088,1763668383618,-153.0,0.00052055,120]
[394528089,1763668383664,-153.0,0.00052055,120]
[394528090,1763668383712,-789616.24021069,0.0005418,120]
[394528091,1763668383764,-900.0,0.00054346,30]
[394528092,1763668383815,-900.0,0.00054346,30]
[394528093,1763668383860,-900.0,0.00054346,30]
[394528094,1763668383905,-900.0,0.00054346,30]
[394528096,1763668383951,-150.0,0.00054495,120]
[394528097,1763668383997,-150.0,0.00054495,120]
[394528098,1763668384042,-239.0793146,0.00054495,120]
[394528099,1763668384090,-500.0,0.00054795,35]
[394528100,1763668384137,-151.0,0.00054795,60]
[394528101,1763668384196,5888.0,0.00035616,120]
[394528102,1763668384246,478.75,0.00042,30]
[394528103,1763668384310,583.7357377,0.000444,120]
[394528104,1763668384361,1081.38,0.00042,30]
[394528105,1763668384417,5888.0,0.00035616,120]
[394528106,1763668384774,583.7357377,0.000457,120]
[394528109,1763668385652,583.7357377,0.000471,120]
[394528111,1763668387986,5888.0,0.00035616,120]
[394528113,1763668390821,465.0,0.00035616,120]
[394528114,1763668391291,153.0,0.00052055,120]
[394528115,1763668391503,153.0,0.00052055,120]
[394528116,1763668391734,153.0,0.00052055,120]
[394528117,1763668391783,578.64,0.000386,30]
[394528118,1763668391944,153.0,0.00052055,120]
[394528119,1763668392157,153.0,0.00052055,120]
[394528120,1763668392363,153.0,0.00052055,120]
[394528122,1763668392611,153.0,0.00052055,120]
[394528123,1763668392822,153.0,0.00052055,120]
[394528124,1763668393035,153.0,0.00052055,120]
[394528125,1763668393249,153.0,0.00052055,120]
[394528126,1763668393455,153.0,0.00052055,120]
[394528127,1763668393715,5520.0,0.000514,120]
[394528128,1763668393768,153.0,0.00052055,120]
[394528129,1763668393879,153.0,0.00052055,120]
[394528130,1763668393927,5520.0,0.000503,120]
[394528131,1763668394080,153.0,0.00052055,120]
[394528132,1763668394283,153.0,0.00052055,120]
[394528146,1763668426298,428.98,0.00041992,30]
[394528199,1763668524004,226.79,0.00024993,120]
[394528214,1763668558947,-231.45,0.00024,14]
[394528231,1763668587608,465.0,0.00035616,120]
[394528278,1763668783438,465.0,0.00035616,120]
[394528626,1763668893602,2487.726,0.00016073,2]
[394529010,1763668955785,426.43191686,0.00035616,120]
[394529011,1763668980656,446.0,0.00035616,120]
[394529012,1763668983823,2802.56461037,0.00035616,120]
[394529014,1763669138873,151.0,0.00042005,50]
[394529015,1763669139452,151.0,0.00042005,50]
[394529016,1763669139500,151.0,0.00042005,50]
[394529017,1763669139762,151.0,0.00042005,50]
[394529018,1763669140145,151.0,0.00042005,50]
[394529019,1763669140446,151.0,0.00042005,50]
[394529020,1763669140746,151.0,0.00042005,50]
[394529021,1763669141036,151.0,0.00042005,50]
[394529022,1763669141341,151.0,0.00042005,50]
[394529023,1763669141660,151.0,0.00042005,50]
[394529024,1763669141955,151.0,0.00042005,50]
[394529025,1763669142244,151.0,0.00042005,50]
[394529026,1763669142539,151.0,0.00042005,50]
[394529027,1763669142838,286.164665,0.00042005,50]
[394529028,1763669144726,151.0,0.00042005,50]
[394529029,1763669165775,151.0,0.00042005,50]
[394529030,1763669167648,151.0,0.00042005,50]
[394529031,1763669167863,151.0,0.00042005,50]
[394529032,1763669167976,151.0,0.00042005,50]
[394529033,1763669168272,151.0,0.00042005,50]
[394529034,1763669168565,151.0,0.00042005,50]
[394529035,1763669168878,151.0,0.00042005,50]
[394529036,1763669169183,151.0,0.00042005,50]
[394529037,1763669169481,151.0,0.00042005,50]
[394529038,1763669169936,151.0,0.00042005,50]
[394529039,1763669170202,151.0,0.00042005,50]
[394529040,1763669170526,151.0,0.00042005,50]
[394529041,1763669170787,208.081048,0.00042005,50]
[394529042,1763669173270,151.0,0.00042005,50]
[394529043,1763669173556,151.0,0.00042005,50]
[394529044,1763669173896,151.0,0.00042005,50]
[394529045,1763669173943,151.0,0.00042005,50]
[394529046,1763669174203,151.0,0.00042005,50]
[394529047,1763669174253,151.0,0.00042005,50]
[394529048,1763669174498,151.0,0.00042005,50]
[394529049,1763669174790,151.0,0.00042005,50]
[394529050,1763669175098,151.0,0.00042005,50]
[394529051,1763669175392,151.0,0.00042005,50]
[394529052,1763669175696,151.0,0.00042005,50]
[394529053,1763669175989,151.0,0.00042005,50]
[394529054,1763669176277,151.0,0.00042005,50]
[394529055,1763669176607,151.0,0.00042005,50]
[394529056,1763669176913,151.0,0.00042005,50]
[394529057,1763669177247,151.0,0.00042005,50]
[394529058,1763669177633,151.0,0.00042005,50]
[394529059,1763669177897,151.0,0.00042005,50]
[394529060,1763669178197,151.0,0.00042005,50]
[394529061,1763669178477,193.316576,0.00042005,50]
[394529062,1763669185230,151.0,0.00042005,50]
[394529063,1763669185535,151.0,0.00042005,50]
[394529064,1763669187030,151.0,0.00042005,50]
[394529065,1763669188026,151.0,0.00042005,50]
[394529066,1763669188333,151.0,0.00042005,50]
[394529067,1763669188619,151.0,0.00042005,50]
[394529068,1763669189002,151.0,0.00042005,50]
[394529069,1763669190841,151.0,0.00042005,50]
[394529070,1763669192868,151.0,0.00042005,50]
[394529071,1763669193846,151.0,0.00042005,50]
[394529072,1763669197664,151.0,0.00042005,50]
[394529073,1763669197954,151.0,0.00042005,50]
[394529074,1763669198250,151.0,0.00042005,50]
[394529292,1763669257630,151.0,0.00042005,30]
[394529293,1763669257896,154.920029,0.00042005,30]
[394529307,1763669432263,-150.0,0.000162,2]
[394529309,1763669432273,-150.0,0.000162,2]
[394529311,1763669432282,-150.0,0.000162,2]
[394529313,1763669432291,-150.0,0.000162,2]
[394529315,1763669432300,-150.0,0.000162,2]
[394529316,1763669432309,-150.0,0.000162,2]
[394529317,1763669432319,-150.0,0.000162,2]
[394529318,1763669432328,-253.9679583,0.00016209,2]
[394529319,1763669432337,-287.88088425,0.00016219,2]
[394529320,1763669432347,-1200.0,0.000163,2]
[394529321,1763669432356,-1000.0,0.00016301,2]
[394529322,1763669432365,-161.15236445,0.00016301,2]
[394529323,1763669432376,-4648.70202146,0.00016301,2]
[394529324,1763669432387,-2168.75,0.00016301,2]
[394529326,1763669434032,151.0,0.00042005,30]
[394529327,1763669438203,-14228.25366647,0.00016301,2]
[394529331,1763669440311,-759.40355103,0.00016301,2]
[394529332,1763669440323,-2209.4619925,0.00016301,2]
[394529333,1763669440334,-780.91368939,0.00016301,2]
[394529334,1763669440365,-633.73279492,0.00016301,2]
[394529343,1763669440477,-301.21211298,0.00016301,2]
[394529430,1763669444401,-1182.12,0.00016301,2]
[394529431,1763669444455,-1396.82961508,0.00016301,2]
[394529432,1763669444467,-2210.079186,0.00016301,2]
[394529433,1763669444574,-1347.30618116,0.00016301,2]
[394529434,1763669444629,-1466.63193534,0.00016301,2]
[394529435,1763669444684,-344.732709,0.00016301,2]
[394529438,1763669446440,-8467.25462014,0.00016301,2]
[394529439,1763669446499,-60567.27066417,0.00016301,2]
[394529440,1763669446730,-55068.16473455,0.00016301,2]
[394529451,1763669493546,1990.18,0.00015975,2]
[394529456,1763669529947,151.0,0.00042005,50]
[394529457,1763669530240,151.0,0.00042005,50]
[394529458,1763669530535,151.0,0.00042005,50]
[394529459,1763669530822,151.0,0.00042005,50]
[394529460,1763669531119,151.0,0.00042005,50]
[394529461,1763669531414,151.0,0.00042005,50]
[394529462,1763669531697,151.0,0.00042005,50]
[394529463,1763669532027,151.0,0.00042005,50]
[394529464,1763669532328,151.0,0.00042005,50]
[394529465,1763669533146,151.0,0.00042005,50]
[394529466,1763669533445,151.0,0.00042005,50]
[394529467,1763669533744,151.0,0.00042005,50]
[394529468,1763669534036,275.340628,0.00042005,50]
[394529469,1763669534886,151.0,0.00042005,50]
[394529470,1763669535214,151.0,0.00042005,50]
[394529471,1763669535508,151.0,0.00042005,50]
[394529472,1763669535803,151.0,0.00042005,50]
[394529474,1763669536095,151.0,0.00042005,50]
[394529475,1763669536397,151.0,0.00042005,50]
[394529476,1763669536703,151.0,0.00042005,50]
[394529477,1763669541998,151.0,0.00042005,50]
[394529478,1763669542299,151.0,0.00042005,50]
[394529479,1763669542585,151.0,0.00042005,50]
[394529480,1763669544794,228.315147,0.00042005,30]
[394529481,1763669547558,151.0,0.00042005,50]
[394529482,1763669547873,151.0,0.00042005,50]
[394529483,1763669548157,151.0,0.00042005,50]
[394529484,1763669548999,151.0,0.00042005,50]
[394529485,1763669549294,151.0,0.00042005,50]
[394529486,1763669549808,151.0,0.00042005,50]
[394529487,1763669549930,151.0,0.00042005,50]
[394529488,1763669550254,151.0,0.00042005,50]
[394529489,1763669550579,151.0,0.00042005,50]
[394529490,1763669550888,151.0,0.00042005,50]
[394529491,1763669551178,151.0,0.00042005,50]
[394529492,1763669551495,151.0,0.00042005,50]
[394529493,1763669551763,151.0,0.00042005,50]
[394529494,1763669552064,151.0,0.00042005,50]
[394529495,1763669552340,219.597098,0.00042005,50]
[394529496,1763669585752,151.0,0.00042005,50]
[394529497,1763669585796,520.0,0.00042005,50]
[394529498,1763669585841,220.0,0.00042005,50]
[394529499,1763669586051,250.0,0.00042005,50]
[394529500,1763669586097,500.0,0.00042005,50]
[394529501,1763669586157,500.0,0.00042005,50]
[394529502,1763669586358,151.0,0.00042005,50]
[394529503,1763669586411,220.0,0.00042005,50]
[394529504,1763669586463,151.0,0.00042005,50]
[394529505,1763669586511,539.24,0.00042005,50]
[394529506,1763669586565,500.0,0.00042005,50]
[394529507,1763669586613,250.0,0.00042005,50]
[394529508,1763669586695,500.0,0.00042005,50]
[394529509,1763669586964,151.0,0.00042005,50]
[394529510,1763669587022,559.19188,0.00042005,50]
[394529511,1763669587069,151.0,0.00042005,50]
[394529512,1763669587265,220.0,0.00042005,50]
[394529513,1763669587324,500.0,0.00042005,50]
[394529514,1763669587385,250.0,0.00042005,50]
[394529515,1763669587431,500.0,0.00042005,50]
[394529516,1763669587627,579.88197956,0.00042005,50]
[394529517,1763669587697,500.0,0.00042005,50]
[394529518,1763669587740,250.0,0.00042005,50]
[394529519,1763669587917,500.0,0.00042005,50]
[394529520,1763669588220,250.0,0.00042005,50]
[394529521,1763669588275,601.3376128,0.00042005,50]
[394529522,1763669588319,500.0,0.00042005,50]
[394529523,1763669588361,250.0,0.00042005,50]
[394529524,1763669588513,500.0,0.00042005,50]
[394529525,1763669588813,250.0,0.00042005,50]
[394529526,1763669588876,151.0,0.00042005,50]
[394529527,1763669588920,601.3376128,0.00042005,50]
[394529528,1763669588963,500.0,0.00042005,50]
[394529529,1763669589043,250.0,0.00042005,50]
[394529530,1763669589110,500.0,0.00042005,50]
[394529531,1763669589214,151.0,0.00042005,50]
[394529532,1763669589427,250.0,0.00042005,50]
[394529533,1763669589518,500.0,0.00042005,50]
[394529534,1763669589563,151.0,0.00042005,50]
[394529535,1763669589617,250.0,0.00042005,50]
[394529536,1763669589741,500.0,0.00042005,50]
[394529537,1763669589824,151.0,0.00042005,50]
[394529538,1763669590026,250.0,0.00042005,50]
[394529539,1763669590071,250.0,0.00042005,50]
[394529540,1763669590110,500.0,0.00042005,50]
[394529541,1763669590212,250.0,0.00042005,50]
[394529542,1763669590336,500.0,0.00042005,50]
[394529543,1763669590644,250.0,0.00042005,50]
[394529544,1763669590686,250.0,0.00042005,50]
[394529545,1763669590784,500.0,0.00042005,50]
[394529546,1763669591258,250.0,0.00042005,50]
[394529547,1763669591311,250.0,0.00042005,50]
[394529548,1763669591359,250.0,0.00042005,50]
[394529549,1763669591433,500.0,0.00042005,50]
[394529550,1763669591864,250.0,0.00042005,50]
[394529551,1763669591968,250.0,0.00042005,50]
[394529552,1763669592460,250.0,0.00042005,50]
[394529553,1763669592535,300.0,0.00042005,50]
[394529554,1763669592582,250.0,0.00042005,50]
[394529555,1763669593129,300.0,0.00042005,50]
[394529556,1763669593172,500.0,0.00042005,50]
[394529557,1763669593214,250.0,0.00042005,50]
[394529558,1763669593256,250.0,0.00042005,50]
[394529559,1763669593757,500.0,0.00042005,50]
[394529560,1763669593799,250.0,0.00042005,50]
[394529561,1763669593839,500.0,0.00042005,50]